bitfinex/quotes_BTCUSD_20240613
["timestamp","ask_amount","ask_price","bid_price","bid_amount"]
[1718270999474,0.37542461,67405.0,67392.0,0.4774]
[1718270999475,0.1408,67402.0,67392.0,0.4774]
[1718270999686,0.1408,67399.0,67392.0,0.4774]
[1718270999922,0.072,67400.0,67392.0,0.4774]
[1718270999923,0.1408,67398.0,67392.0,0.4774]
[1718271000159,0.1408,67399.0,67392.0,0.4774]
[1718271000574,0.1408,67398.0,67392.0,0.4774]
[1718271000787,0.1408,67398.0,67392.0,0.01]
[1718271001045,0.072,67400.0,67392.0,0.01]
[1718271001046,0.1408,67399.0,67392.0,0.01]
[1718271001261,0.12426357,67398.0,67392.0,0.01]
[1718271001484,0.2128,67393.0,67392.0,0.017]
[1718271001709,0.3128,67393.0,67392.0,0.017]
[1718271001925,0.40823835,67393.0,67392.0,0.017]
[1718271002837,0.40823835,67393.0,67368.0,0.01287352]
[1718271002838,0.1442,67383.0,67368.0,0.01287352]
[1718271003068,0.1442,67380.0,67376.0,0.43295979]
[1718271003290,0.1442,67380.0,67377.0,0.072]
[1718271003716,0.1442,67380.0,67379.0,0.09215996]
[1718271003720,0.1,67392.0,67379.0,0.09215996]
[1718271003721,0.1,67392.0,67382.0,0.02]
[1718271003944,0.142,67384.0,67383.0,0.02]
[1718271004172,0.142,67384.0,67379.0,0.21647989]
[1718271004173,0.142,67384.0,67381.0,0.02]
[1718271004386,0.142,67384.0,67383.0,0.072]
[1718271005324,0.142,67384.0,67380.0,0.072]
[1718271005548,0.142,67384.0,67374.0,0.02]
[1718271005549,0.1562,67384.0,67374.0,0.02]
[1718271005768,0.1412,67383.0,67376.0,0.092]
[1718271005990,0.1412,67383.0,67375.0,0.14431993]
[1718271005991,0.1412,67383.0,67380.0,0.02]
[1718271006237,0.1412,67383.0,67382.0,0.092]
[1718271007170,0.1412,67383.0,67382.0,0.072]
[1718271007614,0.1422,67383.0,67382.0,0.092]
[1718271007877,0.1422,67383.0,67382.0,0.23631993]
[1718271007878,0.002,67383.0,67382.0,0.23631993]
[1718271008090,0.2457,67392.0,67382.0,0.23631993]
[1718271008306,0.2457,67392.0,67383.0,0.14431993]
[1718271008958,0.2457,67392.0,67382.0,0.072]
[1718271008959,0.1457,67391.0,67382.0,0.072]
[1718271009170,0.2457,67390.0,67379.0,0.072]
[1718271009384,0.001,67383.0,67382.0,0.011]
[1718271009608,0.002,67383.0,67382.0,0.019]
[1718271009813,0.2457,67390.0,67380.0,0.21647989]
[1718271010030,0.27747,67390.0,67380.0,0.21647989]
[1718271010282,0.27747,67390.0,67383.0,0.017]
[1718271010485,0.2457,67390.0,67383.0,0.01]
[1718271010921,0.2457,67390.0,67382.0,0.008]
[1718271011272,0.2457,67390.0,67380.0,0.21647989]
[1718271011419,0.2457,67390.0,67380.0,0.011]
[1718271011420,0.1453,67389.0,67380.0,0.011]
[1718271011642,0.1426,67385.0,67380.0,0.011]
[1718271012291,0.001,67383.0,67382.0,0.011]
[1718271013498,0.001,67383.0,67372.0,0.14501996]
[1718271013715,0.1426,67385.0,67383.0,0.007]
[1718271014204,0.0609,67384.0,67380.0,0.013]
[1718271014598,0.0609,67382.0,67380.0,0.013]
[1718271014600,0.0609,67382.0,67372.0,0.07301996]
[1718271014804,0.0609,67382.0,67372.0,0.21733989]
[1718271015025,0.0609,67382.0,67372.0,0.23133989]
[1718271015522,0.0827,67383.0,67372.0,0.07301996]
[1718271015523,0.072,67376.0,67372.0,0.07301996]
[1718271015971,0.0614,67375.0,67372.0,0.07301996]
[1718271017649,0.01491102,67374.0,67372.0,0.07301996]
[1718271017853,0.01491102,67374.0,67372.0,0.07701996]
[1718271018471,0.01491102,67374.0,67372.0,0.07301996]
[1718271018888,0.01491102,67374.0,67372.0,0.07701996]
[1718271019098,0.01491102,67374.0,67372.0,0.00486]
[1718271019933,0.03007212,67374.0,67372.0,0.00486]
[1718271020266,0.01491102,67374.0,67372.0,0.00486]
[1718271021099,0.0787,67373.0,67372.0,0.00486]
[1718271021312,0.0935633,67373.0,67372.0,0.00486]
[1718271022168,0.0935633,67373.0,67372.0,0.00086]
[1718271023028,0.1576633,67373.0,67372.0,0.00086]
[1718271023603,0.1576633,67373.0,67372.0,0.00386]
[1718271025576,0.18062963,67373.0,67372.0,0.00386]
[1718271025779,0.1576633,67373.0,67372.0,0.00386]
[1718271025975,0.1776633,67373.0,67372.0,0.00386]
[1718271026148,0.1576633,67373.0,67372.0,0.00386]
[1718271026622,0.1776633,67373.0,67372.0,0.00386]
[1718271026821,0.1576633,67373.0,67372.0,0.00386]
[1718271028374,0.1776633,67373.0,67372.0,0.00386]
[1718271028999,0.1576633,67373.0,67372.0,0.00386]
[1718271029407,0.1776633,67373.0,67372.0,0.00386]
[1718271029618,0.1576633,67373.0,67372.0,0.00386]
[1718271030268,0.20262963,67373.0,67372.0,0.00386]
[1718271030506,0.20562963,67373.0,67372.0,0.00386]
[1718271030891,0.22562963,67373.0,67372.0,0.00386]
[1718271031096,0.22562963,67373.0,67372.0,0.00086]
[1718271031097,0.1576633,67373.0,67372.0,0.00086]
[1718271031547,0.1576633,67373.0,67372.0,0.00186]
[1718271031776,0.1696633,67373.0,67372.0,0.00186]
[1718271032224,0.1576633,67373.0,67372.0,0.00086]
[1718271032442,0.32198323,67373.0,67372.0,0.00086]
[1718271032650,0.50438155,67373.0,67372.0,0.00286]
[1718271033085,0.49638155,67373.0,67372.0,0.00186]
[1718271033306,0.50438155,67373.0,67372.0,0.00286]
[1718271033947,0.50438155,67373.0,67372.0,0.00186]
[1718271033948,0.59238155,67373.0,67372.0,0.00186]
[1718271034213,0.59238155,67373.0,67372.0,0.00086]
[1718271034428,0.59638155,67373.0,67372.0,0.00186]
[1718271034874,0.87800709,67373.0,67372.0,0.00186]
[1718271035078,0.87800709,67373.0,67372.0,0.00086]
[1718271035079,0.92352454,67373.0,67372.0,0.00086]
[1718271035295,0.0604,67358.0,67356.0,0.00086]
[1718271035549,0.21631993,67357.0,67356.0,0.00086]
[1718271035766,0.35412459,67357.0,67356.0,0.00086]
[1718271036202,0.18680466,67357.0,67356.0,0.00086]
[1718271036633,0.18680466,67357.0,67356.0,0.00186]
[1718271037095,0.18680466,67357.0,67356.0,0.00086]
[1718271037320,0.19480466,67357.0,67356.0,0.00186]
[1718271037748,0.18680466,67357.0,67356.0,0.00086]
[1718271037952,0.26900466,67357.0,67356.0,0.00086]
[1718271038615,0.28300466,67357.0,67356.0,0.00086]
[1718271039025,0.26900466,67357.0,67356.0,0.00086]
[1718271039456,0.32394513,67357.0,67356.0,0.00086]
[1718271039676,0.55966506,67357.0,67356.0,0.00186]
[1718271039892,0.55966506,67357.0,67356.0,0.00086]
[1718271040104,0.26540466,67357.0,67356.0,0.00086]
[1718271040311,0.34540466,67357.0,67356.0,0.00186]
[1718271040757,0.33740466,67357.0,67356.0,0.00086]
[1718271041215,0.27940466,67357.0,67356.0,0.00186]
[1718271041433,0.28740466,67357.0,67356.0,0.00186]
[1718271041638,0.26540466,67357.0,67356.0,0.00086]
[1718271042129,0.27940466,67357.0,67356.0,0.00086]
[1718271042759,0.26540466,67357.0,67356.0,0.00086]
[1718271042971,0.28740466,67357.0,67356.0,0.00186]
[1718271043187,0.14480466,67357.0,67356.0,0.00186]
[1718271043401,0.02880466,67357.0,67356.0,0.00086]
[1718271043621,0.02880466,67357.0,67356.0,0.00186]
[1718271043841,0.03680466,67357.0,67356.0,0.00186]
[1718271044059,0.03680466,67357.0,67356.0,0.00086]
[1718271044262,0.02280466,67357.0,67356.0,0.00186]
[1718271044479,0.03080466,67357.0,67356.0,0.00186]
[1718271044684,0.03580466,67357.0,67356.0,0.00186]
[1718271046180,0.13580466,67357.0,67356.0,0.00186]
[1718271049093,0.03580466,67357.0,67356.0,0.00186]
[1718271049274,0.13580466,67357.0,67356.0,0.00186]
[1718271049985,0.03580466,67357.0,67356.0,0.00186]
[1718271050221,0.03580466,67357.0,67356.0,0.30967993]
[1718271050444,0.03580466,67357.0,67356.0,0.38183989]
[1718271050669,0.021,67357.0,67356.0,0.68968093]
[1718271050902,0.016,67357.0,67356.0,0.381861]
[1718271051127,0.06,67370.0,67356.0,0.21511996]
[1718271051344,0.06,67370.0,67356.0,0.21711996]
[1718271051345,0.001,67357.0,67356.0,0.21711996]
[1718271051801,0.001,67357.0,67356.0,0.36143989]
[1718271052029,0.1358,67377.0,67359.0,0.02]
[1718271052254,0.1358,67377.0,67360.0,0.28591993]
[1718271052518,0.01478872,67376.0,67360.0,0.28591993]
[1718271052743,0.1,67376.0,67360.0,0.28591993]
[1718271053213,0.01478872,67375.0,67360.0,0.28591993]
[1718271053436,0.02505887,67374.0,67356.0,0.01086]
[1718271053643,0.1619,67373.0,67356.0,0.00286]
[1718271053862,0.1,67372.0,67356.0,0.00286]
[1718271054087,0.1,67372.0,67360.0,0.001]
[1718271054088,0.1237,67371.0,67360.0,0.001]
[1718271054322,0.0612,67370.0,67356.0,0.00286]
[1718271054586,0.0612,67370.0,67356.0,0.00086]
[1718271054819,0.1363,67361.0,67356.0,0.00586]
[1718271055101,0.16992,67361.0,67356.0,0.00586]
[1718271055335,0.1,67360.0,67356.0,0.00186]
[1718271055590,0.11480503,67360.0,67356.0,0.00186]
[1718271056056,0.11480503,67360.0,67356.0,0.00086]
[1718271056295,0.16326753,67360.0,67356.0,0.00086]
[1718271057151,0.16626753,67360.0,67356.0,0.00086]
[1718271057612,0.11780503,67360.0,67356.0,0.00086]
[1718271057840,0.11780503,67360.0,67356.0,0.00186]
[1718271058058,0.11780503,67360.0,67357.0,0.07215996]
[1718271058266,0.01780503,67360.0,67357.0,0.13535996]
[1718271058906,0.01780503,67360.0,67356.0,0.00186]
[1718271058907,0.01780503,67360.0,67356.0,0.00086]
[1718271059354,0.01780503,67360.0,67356.0,0.00186]
[1718271059567,0.1,67370.0,67356.0,0.00186]
[1718271059745,0.14452,67370.0,67356.0,0.00186]
[1718271060049,0.005,67360.0,67356.0,0.00186]
[1718271060270,0.01480503,67369.0,67356.0,0.00186]
[1718271060498,0.15452,67370.0,67356.0,0.00186]
[1718271060717,0.01480503,67368.0,67356.0,0.00086]
[1718271060928,0.023,67369.0,67356.0,0.00086]
[1718271060929,0.0347625,67367.0,67356.0,0.00086]
[1718271061140,0.04956753,67367.0,67356.0,0.00086]
[1718271061638,0.003,67360.0,67356.0,0.00086]
[1718271063398,0.0487625,67367.0,67356.0,0.00086]
[1718271063610,0.0487625,67367.0,67356.0,0.00186]
[1718271063757,0.05359834,67366.0,67356.0,0.00186]
[1718271064776,0.07359834,67366.0,67356.0,0.00186]
[1718271064965,0.07359834,67366.0,67356.0,0.00086]
[1718271064966,0.003,67360.0,67356.0,0.00086]
[1718271065106,0.01480358,67359.0,67356.0,0.00086]
[1718271065340,0.0662,67359.0,67356.0,0.00086]
[1718271065540,0.01480358,67358.0,67356.0,0.00086]
[1718271066517,0.01480358,67358.0,67356.0,0.00186]
[1718271066728,0.01480358,67358.0,67356.0,0.00286]
[1718271066918,0.01480358,67358.0,67356.0,0.00186]
[1718271067258,0.01780358,67358.0,67356.0,0.00186]
[1718271067708,0.01780358,67358.0,67356.0,0.00086]
[1718271067921,0.01780358,67358.0,67356.0,0.00186]
[1718271069372,0.01780358,67358.0,67357.0,0.21345996]
[1718271069772,0.003,67358.0,67357.0,0.21345996]
[1718271070012,0.003,67358.0,67357.0,0.33662469]
[1718271070685,0.0652,67374.0,67357.0,0.33662469]
[1718271070686,0.1,67369.0,67357.0,0.33662469]
[1718271070910,0.0652,67374.0,67358.0,0.12910246]
[1718271071118,0.01479121,67368.0,67359.0,0.12316473]
[1718271071323,0.0652,67374.0,67360.0,0.12316473]
[1718271071554,0.01479121,67367.0,67360.0,0.12316473]
[1718271071769,0.0652,67374.0,67361.0,0.12316473]
[1718271071977,0.09172,67374.0,67362.0,0.12316473]
[1718271072185,0.03479121,67373.0,67363.0,0.12316473]
[1718271072395,0.13479121,67373.0,67357.0,0.21345996]
[1718271072900,0.13479121,67373.0,67358.0,0.12315187]
[1718271073108,0.05540381,67372.0,67358.0,0.12315187]
[1718271073312,0.0766,67368.0,67358.0,0.12415187]
[1718271073519,0.0766,67368.0,67358.0,0.001]
[1718271073729,0.0766,67368.0,67357.0,0.1413]
[1718271073968,0.01479781,67367.0,67357.0,0.1423]
[1718271074225,0.02,67366.0,67357.0,0.001]
[1718271074431,0.02,67366.0,67356.0,0.00086]
[1718271074432,0.0664,67365.0,67356.0,0.00086]
[1718271074649,0.0864,67365.0,67358.0,0.001]
[1718271074856,0.04327759,67364.0,67356.0,0.00086]
[1718271075486,0.04327759,67364.0,67357.0,0.12316203]
[1718271075687,0.04327759,67364.0,67356.0,0.00086]
[1718271076523,0.04327759,67364.0,67357.0,0.001]
[1718271076787,0.0769,67361.0,67357.0,0.001]
[1718271076989,0.1769,67361.0,67356.0,0.00086]
[1718271077197,0.01477836,67360.0,67356.0,0.00186]
[1718271077624,0.01477836,67360.0,67356.0,0.00086]
[1718271078060,0.01477836,67360.0,67357.0,0.001]
[1718271078272,0.01477836,67360.0,67356.0,0.00086]
[1718271078929,0.01477836,67360.0,67356.0,0.00186]
[1718271079761,0.01777836,67360.0,67356.0,0.00186]
[1718271081106,0.0173265,67360.0,67356.0,0.00186]
[1718271083489,0.1999,67357.0,67356.0,0.00186]
[1718271083701,0.49480457,67357.0,67356.0,0.00186]
[1718271083906,0.51780457,67357.0,67356.0,0.00186]
[1718271084122,0.53255782,67357.0,67356.0,0.00186]
[1718271084805,0.68025782,67357.0,67356.0,0.00186]
[1718271085029,0.68725782,67357.0,67356.0,0.00286]
[1718271085249,0.68725782,67357.0,67356.0,0.00186]
[1718271085476,0.78725782,67357.0,67356.0,0.00186]
[1718271085708,0.70125782,67357.0,67356.0,0.00186]
[1718271085971,0.70087939,67357.0,67356.0,0.00186]
[1718271086210,0.49997939,67357.0,67356.0,0.00086]
[1718271086443,0.64329475,67357.0,67356.0,0.00086]
[1718271086660,0.64329475,67357.0,67356.0,0.00186]
[1718271086661,0.65329475,67357.0,67356.0,0.00186]
[1718271086872,0.62929475,67357.0,67356.0,0.00086]
[1718271087339,0.65629475,67357.0,67356.0,0.00186]
[1718271087560,0.65629475,67357.0,67356.0,0.00086]
[1718271088016,0.66929475,67357.0,67356.0,0.00186]
[1718271088440,0.48939475,67357.0,67356.0,0.00186]
[1718271088667,0.65529475,67357.0,67356.0,0.00186]
[1718271089111,0.66929475,67357.0,67356.0,0.00186]
[1718271090247,0.65967318,67357.0,67356.0,0.00186]
[1718271090474,0.66929475,67357.0,67356.0,0.00186]
[1718271090694,0.65967318,67357.0,67356.0,0.00186]
[1718271090898,0.73622422,67357.0,67356.0,0.00186]
[1718271091793,0.83622422,67357.0,67356.0,0.00186]
[1718271092447,0.73622422,67357.0,67356.0,0.00186]
[1718271092652,0.84625488,67357.0,67356.0,0.00186]
[1718271093296,0.77222422,67357.0,67356.0,0.00186]
[1718271093502,0.87222422,67357.0,67356.0,0.00186]
[1718271093739,0.86022422,67357.0,67356.0,0.00086]
[1718271093963,1.03707853,67357.0,67356.0,0.00086]
[1718271094162,1.03707853,67357.0,67356.0,0.00186]
[1718271094163,1.3320324,67357.0,67356.0,0.00186]
[1718271094369,1.05378786,67357.0,67356.0,0.00086]
[1718271094575,1.36187108,67357.0,67356.0,0.00086]
[1718271094785,1.37187108,67357.0,67356.0,0.00186]
[1718271095021,1.00682864,67357.0,67356.0,0.00186]
[1718271095231,1.02082864,67357.0,67356.0,0.00186]
[1718271095450,1.0869582,67357.0,67356.0,0.00186]
[1718271095890,1.0729582,67357.0,67356.0,0.00186]
[1718271096113,1.0869582,67357.0,67356.0,0.00186]
[1718271096542,1.04694968,67357.0,67356.0,0.00186]
[1718271096748,1.04694968,67357.0,67356.0,0.00086]
[1718271096749,0.9968492,67357.0,67356.0,0.00086]
[1718271097163,1.0108492,67357.0,67356.0,0.00086]
[1718271097387,1.01462681,67357.0,67356.0,0.00086]
[1718271097827,1.02862681,67357.0,67356.0,0.00086]
[1718271098062,1.18482681,67357.0,67356.0,0.00086]
[1718271098745,1.55997124,67357.0,67356.0,0.00086]
[1718271098986,1.66308124,67357.0,67356.0,0.00086]
[1718271099195,1.64908124,67357.0,67356.0,0.00086]
[1718271099413,0.26192157,67345.0,67344.0,0.24339774]
[1718271099619,0.5861415,67345.0,67344.0,0.211529]
[1718271099846,0.72617058,67345.0,67344.0,0.211529]
[1718271100063,0.86380678,67345.0,67344.0,0.211529]
[1718271100284,0.92408363,67345.0,67344.0,0.211529]
[1718271100501,1.11245311,67345.0,67344.0,0.211529]
[1718271100932,1.12645311,67345.0,67344.0,0.195529]
[1718271101153,1.14045311,67345.0,67344.0,0.195529]
[1718271101382,1.0964028,67345.0,67344.0,0.179529]
[1718271102509,1.0824028,67345.0,67344.0,0.179529]
[1718271103207,1.03612671,67345.0,67344.0,0.179529]
[1718271103442,0.93612671,67345.0,67344.0,0.179529]
[1718271103668,0.53890678,67345.0,67344.0,0.179529]
[1718271103891,0.3565777,67345.0,67344.0,0.179529]
[1718271105198,0.4985777,67345.0,67344.0,0.179529]
[1718271105607,0.5215777,67345.0,67344.0,0.179529]
[1718271105827,0.59468547,67345.0,67344.0,0.179529]
[1718271106061,0.58068547,67345.0,67344.0,0.179529]
[1718271106756,0.62073791,67345.0,67344.0,0.179529]
[1718271106968,0.60673791,67345.0,67344.0,0.179529]
[1718271107195,0.62073791,67345.0,67344.0,0.179529]
[1718271107424,0.63473791,67345.0,67344.0,0.179529]
[1718271107658,0.58068547,67345.0,67344.0,0.180389]
[1718271107890,0.62068397,67345.0,67344.0,0.180389]
[1718271108318,0.68812136,67345.0,67344.0,0.180389]
[1718271108884,0.67412136,67345.0,67344.0,0.180389]
[1718271109086,0.77412136,67345.0,67344.0,0.180389]
[1718271109499,0.68809283,67345.0,67344.0,0.180389]
[1718271109718,0.49609283,67345.0,67325.0,0.00037843]
[1718271109906,0.02,67334.0,67320.0,0.005941]
[1718271110118,0.01,67332.0,67315.0,0.005941]
[1718271110345,0.25893873,67344.0,67316.0,0.12321408]
[1718271110346,0.02,67328.0,67316.0,0.12321408]
[1718271110561,0.0603,67341.0,67316.0,0.12321408]
[1718271110562,0.02,67323.0,67316.0,0.12321408]
[1718271110769,0.1899,67337.0,67316.0,0.12321408]
[1718271110770,0.02,67322.0,67316.0,0.12321408]
[1718271110978,0.02,67322.0,67307.0,0.27924517]
[1718271110979,0.02,67320.0,67307.0,0.27924517]
[1718271111195,0.02,67320.0,67304.0,0.00856]
[1718271111196,0.14431993,67327.0,67308.0,0.12323221]
[1718271111197,0.21225996,67309.0,67308.0,0.12323221]
[1718271111416,0.21225996,67309.0,67300.0,0.0005]
[1718271111417,0.03,67301.0,67300.0,0.0005]
[1718271111632,0.02,67290.0,67289.0,0.27629845]
[1718271112057,0.023,67290.0,67289.0,0.32859733]
[1718271112280,0.1,67296.0,67289.0,0.32859733]
[1718271112503,0.1,67299.0,67289.0,0.27629845]
[1718271112504,0.12,67299.0,67289.0,0.27629845]
[1718271112991,0.01453554,67298.0,67289.0,0.41599845]
[1718271113213,0.01453554,67298.0,67289.0,0.27606124]
[1718271113214,0.14431993,67297.0,67289.0,0.27606124]
[1718271113434,0.0866955,67298.0,67289.0,0.27606124]
[1718271113435,0.01453554,67298.0,67290.0,0.1397]
[1718271113637,0.1373,67315.0,67290.0,0.1397]
[1718271113638,0.01460609,67296.0,67290.0,0.0788]
[1718271113851,0.02,67300.0,67290.0,0.0788]
[1718271114067,0.01460609,67295.0,67290.0,0.0788]
[1718271114306,0.02,67301.0,67290.0,0.0788]
[1718271114500,0.01460609,67294.0,67290.0,0.0788]
[1718271114712,0.02,67300.0,67290.0,0.0788]
[1718271114922,0.01460609,67293.0,67290.0,0.0788]
[1718271115147,0.023,67307.0,67290.0,0.0788]
[1718271115148,0.1,67305.0,67290.0,0.15095996]
[1718271115375,0.1,67305.0,67290.0,0.0788]
[1718271115602,0.014,67301.0,67290.0,0.0788]
[1718271115811,0.002,67298.0,67290.0,0.0788]
[1718271116005,0.014,67301.0,67290.0,0.0788]
[1718271116440,0.01460609,67300.0,67290.0,0.0788]
[1718271116654,0.014,67301.0,67290.0,0.0788]
[1718271117093,0.02,67304.0,67290.0,0.0788]
[1718271117305,0.03460609,67300.0,67290.0,0.0788]
[1718271117523,0.02,67297.0,67290.0,0.0788]
[1718271117737,0.02,67292.0,67290.0,0.0788]
[1718271117947,0.02,67292.0,67289.0,0.33696124]
[1718271117948,0.02,67290.0,67289.0,0.27606124]
[1718271118461,0.05748431,67290.0,67289.0,0.27606124]
[1718271118748,0.20180424,67290.0,67289.0,0.27606124]
[1718271119063,0.30180424,67290.0,67289.0,0.27606124]
[1718271119266,0.49313462,67290.0,67289.0,0.27606124]
[1718271119501,0.50787466,67290.0,67289.0,0.27606124]
[1718271119738,0.50887466,67290.0,67289.0,0.27606124]
[1718271119970,0.50787466,67290.0,67289.0,0.27606124]
[1718271120275,0.52187466,67290.0,67289.0,0.27606124]
[1718271120489,0.65403462,67290.0,67289.0,0.27606124]
[1718271120702,0.75503462,67290.0,67289.0,0.24808728]
[1718271120915,0.65503462,67290.0,67289.0,0.24808728]
[1718271121129,0.65403462,67290.0,67289.0,0.24808728]
[1718271121564,0.47670424,67290.0,67289.0,0.24808728]
[1718271121802,0.12848431,67290.0,67289.0,0.24808728]
[1718271122050,0.01448431,67290.0,67289.0,0.24808728]
[1718271122266,0.12848431,67290.0,67289.0,0.24808728]
[1718271122482,0.114,67290.0,67289.0,0.24808728]
[1718271122693,0.02837431,67290.0,67289.0,0.24808728]
[1718271123191,0.21301063,67304.0,67289.0,0.24808728]
[1718271123192,0.02,67304.0,67289.0,0.24808728]
[1718271123408,0.16431993,67304.0,67289.0,0.24808728]
[1718271123671,0.014,67290.0,67289.0,0.24808728]
[1718271124135,0.16431993,67304.0,67289.0,0.24808728]
[1718271124357,0.02837431,67290.0,67289.0,0.24808728]
[1718271124572,0.014,67290.0,67289.0,0.24808728]
[1718271124784,0.014,67290.0,67289.0,0.38798728]
[1718271125008,0.02,67316.0,67292.0,0.1399]
[1718271125224,0.43295979,67307.0,67295.0,0.07215996]
[1718271125466,0.006,67304.0,67296.0,0.14431993]
[1718271125905,0.02,67304.0,67296.0,0.14431993]
[1718271126132,0.006,67304.0,67296.0,0.14431993]
[1718271126346,0.006,67304.0,67298.0,0.0633]
[1718271126554,0.006,67304.0,67300.0,0.3387]
[1718271126804,0.006,67304.0,67301.0,0.14431993]
[1718271127022,0.02,67324.0,67302.0,0.0633]
[1718271127244,0.001,67304.0,67303.0,0.14431993]
[1718271128727,0.02,67321.0,67303.0,0.14431993]
[1718271128933,0.01449344,67304.0,67303.0,0.14431993]
[1718271129139,0.001,67304.0,67303.0,0.14431993]
[1718271129570,0.001,67304.0,67298.0,0.1692]
[1718271129571,0.07215996,67314.0,67296.0,0.1373]
[1718271129810,0.001,67304.0,67303.0,0.013]
[1718271130244,0.01549344,67304.0,67303.0,0.013]
[1718271130449,0.002,67304.0,67303.0,0.013]
[1718271130715,0.02,67303.0,67296.0,0.1373]
[1718271131160,0.02,67299.0,67296.0,0.1373]
[1718271131581,0.02,67299.0,67287.0,0.2]
[1718271131804,0.02,67299.0,67288.0,0.1373]
[1718271132008,0.02,67301.0,67288.0,0.1373]
[1718271132247,0.02,67301.0,67296.0,0.012]
[1718271132466,0.02,67301.0,67288.0,0.1373]
[1718271132467,0.001,67303.0,67288.0,0.1373]
[1718271132692,0.001,67303.0,67292.0,0.07215996]
[1718271132891,0.004,67299.0,67290.0,0.14431993]
[1718271133795,0.02,67307.0,67290.0,0.14431993]
[1718271134201,0.004,67299.0,67289.0,0.24808728]
[1718271134406,0.024,67299.0,67289.0,0.39240721]
[1718271134643,0.004,67299.0,67289.0,0.39240721]
[1718271134860,0.02,67300.0,67289.0,0.39240721]
[1718271135064,0.02,67292.0,67289.0,0.24808728]
[1718271135480,0.02,67291.0,67290.0,0.012]
[1718271135686,0.02,67291.0,67289.0,0.24808728]
[1718271135927,0.02,67297.0,67289.0,0.24808728]
[1718271136197,0.02,67297.0,67290.0,0.0638]
[1718271136677,0.02,67296.0,67290.0,0.0638]
[1718271136892,0.001,67299.0,67290.0,0.0638]
[1718271137124,0.1,67304.0,67290.0,0.0638]
[1718271137125,0.01446945,67295.0,67290.0,0.0638]
[1718271137357,0.014,67291.0,67290.0,0.0638]
[1718271138037,0.024,67291.0,67289.0,0.24908728]
[1718271138260,0.02,67290.0,67289.0,0.24908728]
[1718271138753,0.02,67296.0,67289.0,0.24808728]
[1718271138971,0.01446945,67290.0,67289.0,0.24808728]
[1718271139189,0.02,67294.0,67289.0,0.24808728]
[1718271139421,0.01446945,67290.0,67289.0,0.24808728]
[1718271139661,0.02,67290.0,67289.0,0.24808728]
[1718271139882,0.12,67300.0,67289.0,0.24808728]
[1718271140176,0.1,67304.0,67289.0,0.24908728]
[1718271140177,0.01446945,67290.0,67289.0,0.24908728]
[1718271140434,0.02,67297.0,67289.0,0.24894728]
[1718271140690,0.1,67299.0,67289.0,0.24894728]
[1718271140691,0.02,67296.0,67289.0,0.24894728]
[1718271140907,0.03446945,67296.0,67289.0,0.24894728]
[1718271141134,0.001,67291.0,67289.0,0.24894728]
[1718271141603,0.02,67300.0,67289.0,0.24894728]
[1718271141802,0.1,67302.0,67289.0,0.24894728]
[1718271141803,0.009,67297.0,67289.0,0.24894728]
[1718271142018,0.009,67297.0,67289.0,0.24994728]
[1718271142266,0.01446962,67296.0,67290.0,0.0735405]
[1718271142494,0.01446962,67296.0,67291.0,0.0774]
[1718271142701,0.000946,67304.0,67291.0,0.0774]
[1718271142909,0.000946,67304.0,67292.0,0.45246931]
[1718271143114,0.000946,67304.0,67293.0,0.36127649]
[1718271143319,0.001,67297.0,67296.0,0.2]
[1718271143526,0.001,67297.0,67296.0,0.70480182]
[1718271143729,0.000946,67304.0,67296.0,0.70480182]
[1718271143944,0.000946,67304.0,67297.0,0.19965018]
[1718271144148,0.000946,67304.0,67297.0,0.45540597]
[1718271144349,0.000946,67304.0,67297.0,0.14728713]
[1718271145013,0.000946,67304.0,67299.0,0.1465]
[1718271145241,0.006946,67304.0,67300.0,0.00296706]
[1718271145454,0.006946,67304.0,67301.0,0.45241738]
[1718271145621,0.000946,67304.0,67302.0,0.30809745]
[1718271145784,0.000946,67304.0,67303.0,0.14431993]
[1718271146005,0.001946,67304.0,67303.0,0.14431993]
[1718271146443,0.000946,67304.0,67303.0,0.14431993]
[1718271148557,0.004946,67304.0,67303.0,0.14931993]
[1718271148970,0.004946,67304.0,67303.0,0.16331993]
[1718271149165,0.004946,67304.0,67303.0,0.15831993]
[1718271149574,0.005946,67304.0,67303.0,0.16431993]
[1718271149803,0.001946,67304.0,67303.0,0.15031993]
[1718271149980,0.000946,67304.0,67303.0,0.14431993]
[1718271150199,0.001946,67304.0,67303.0,0.15831993]
[1718271150419,0.001946,67304.0,67303.0,0.46641012]
[1718271150913,0.001946,67304.0,67303.0,0.014]
[1718271151523,0.001946,67304.0,67303.0,0.006]
[1718271151952,0.001946,67304.0,67303.0,0.005]
[1718271151953,0.002946,67304.0,67303.0,0.005]
[1718271152157,0.001946,67304.0,67303.0,0.005]
[1718271152514,0.002946,67304.0,67303.0,0.011]
[1718271152739,0.003946,67304.0,67303.0,0.022]
[1718271152960,0.001946,67304.0,67303.0,0.006]
[1718271153165,0.000946,67304.0,67302.0,0.0658]
[1718271153378,0.001946,67304.0,67303.0,0.006]
[1718271155337,0.000946,67304.0,67302.0,0.0658]
[1718271155690,0.001946,67304.0,67302.0,0.0658]
[1718271156301,0.000946,67304.0,67296.0,0.1416]
[1718271156509,0.001946,67304.0,67297.0,0.14431993]
[1718271156717,0.002946,67304.0,67300.0,0.00017886]
[1718271157045,0.000946,67304.0,67300.0,0.00017886]
[1718271157245,0.020946,67304.0,67300.0,0.00017886]
[1718271157471,0.022946,67304.0,67300.0,0.00017886]
[1718271157689,0.001946,67304.0,67300.0,0.00017886]
[1718271158071,0.002946,67304.0,67300.0,0.00017886]
[1718271158620,0.001946,67304.0,67300.0,0.00017886]
[1718271159017,0.002946,67304.0,67300.0,0.00017886]
[1718271159482,0.000946,67304.0,67300.0,0.00017886]
[1718271159899,0.001946,67304.0,67300.0,0.00817886]